[Event "SVK Amateur-ch 2020"]
[Site "Topolcany"]
[Date "2020.07.12"]
[Round "4.28"]
[White "Musial, Tomasz"]
[Black "Matejov, Jaroslav"]
[Result "1-0"]
[ECO "E07"]
[WhiteElo "1946"]
[BlackElo "2021"]
[Annotator "ChessBase"]
[PlyCount "95"]
[EventDate "2020.07.10"]
[EventType "swiss"]
[EventCountry "SVK"]
[SourceTitle "playchess.com"]
[Source "ChessBase"]
[SourceQuality "1"]
[TimeControl "3600+30"]

1. d4 {[%emt 0:00:00]} Nf6 {[%emt 0:08:08]} 2. c4 {[%emt 0:00:00]} e6 {[%emt 0:00:22]} 3. Nf3 {[%emt 0:00:00]} d5 {[%emt 0:00:05]} 4. g3 {[%emt 0:00:02]} Be7 {[%emt 0:00:08]} 5. Bg2 {[%emt 0:00:06]} O-O {[%emt 0:00:11]} 6. O-O {[%emt 0:00:03]} Nbd7 {[%emt 0:00:10]} 7. Nc3 {[%emt 0:01:17]} dxc4 {[%emt 0:00:20]} 8. e3 {[%emt 0:09:16]} c5 {[%emt 0:03:48]} 9. Qe2 {[%emt 0:01:13]} cxd4 {[%emt 0:00:54]} 10. Nxd4 {[%emt 0:00:08]} Ne5 {[%emt 0:03:26]} 11. Rd1 {[%emt 0:01:50]} Qc7 {[%emt 0:03:25]} 12. f4 {[%emt 0:06:37]} Nd3 {[%emt 0:00:24]} 13. b3 {[%emt 0:00:29]} e5 {[%emt 0:09:53]} 14. Ndb5 {[%emt 0:02:05]} Qb6 {[%emt 0:02:09]} 15. bxc4 {[%emt 0:01:27]} Nxc1 {[%emt 0:00:10]} 16. Rdxc1 {[%emt 0:01:47]} exf4 {[%emt 0:01:39]} 17. gxf4 {[%emt 0:00:12]} Bg4 {[%emt 0:00:24]} 18. Qf2 {[%emt 0:02:01]} Bc5 {[%emt 0:01:21]} 19. Nd4 {[%emt 0:00:11]} Rab8 {[%emt 0:11:37]} 20. Rab1 {[%emt 0:06:26]} Qa6 {[%emt 0:05:40]} 21. Rb5 {[%emt 0:01:57]} b6 {[%emt 0:02:29]} 22. Nb3 {[%emt 0:05:32]} Ba3 {[%emt 0:01:02]} 23. Rc2 {[%emt 0:00:48]} Bd7 {[%emt 0:01:47]} 24. Rg5 {[%emt 0:00:27]} h6 {[%emt 0:00:59]} 25. Rg3 {[%emt 0:06:29]} Rfd8 {[%emt 0:02:41]} 26. Bf3 {[%emt 0:02:38]} Be6 {[%emt 0:01:32]} 27. Qg2 {[%emt 0:01:59]} Bf8 {[%emt 0:00:10]} 28. Nd5 {[%emt 0:02:40]} Bxd5 {[%emt 0:00:33]} 29. cxd5 {[%emt 0:00:07]} Rbc8 {[%emt 0:00:44]} 30. e4 {[%emt 0:03:55]} Qd3 {[%emt 0:00:21]} 31. Re2 {[%emt 0:04:38]} a5 {[%emt 0:00:45]} 32. Bg4 {[%emt 0:01:07]} Qb1+ {[%emt 0:00:20]} 33. Qf1 {[%emt 0:00:12]} Qxf1+ {[%emt 0:00:21]} 34. Kxf1 {[%emt 0:00:06]} Rc4 {[%emt 0:01:57]} 35. Bf3 {[%emt 0:02:34]} a4 {[%emt 0:00:57]} 36. Nd2 {[%emt 0:00:11]} Rd4 {[%emt 0:00:15]} 37. Rg1 {[%emt 0:03:59]} Rc8 {[%emt 0:01:09]} 38. d6 {[%emt 0:01:13]} Rc2 {[%emt 0:01:14]} 39. e5 {[%emt 0:00:43]} Nd7 {[%emt 0:01:36]} 40. Ne4 {[%emt 0:00:43]} Rxe2 {[%emt 0:00:23]} 41. Kxe2 {[%emt 0:00:06]} Rc4 {[%emt 0:02:10]} 42. Kd3 {[%emt 0:00:37]} Rc8 {[%emt 0:00:59]} 43. Bg4 {[%emt 0:01:26]} Nc5+ {[%emt 0:01:16]} 44. Kd4 {[%emt 0:00:52]} Rc6 {[%emt 0:01:25]} 45. Kd5 {[%emt 0:00:14]} Nxe4 {[%emt 0:00:34]} 46. Kxc6 {[%emt 0:00:06]} Nf2 {[%emt 0:00:23]} 47. Bf5 {[%emt 0:00:17]} g6 {[%emt 0:00:24]} 48. Rf1 {[%emt 0:00:12]} 1-0

[Event "SVK Amateur-ch 2020"]
[Site "Topolcany"]
[Date "2020.07.12"]
[Round "4.29"]
[White "Nadzamova, Viktoria"]
[Black "Kubrican, Anton"]
[Result "1-0"]
[ECO "B06"]
[WhiteElo "2046"]
[BlackElo "1861"]
[Annotator "ChessBase"]
[PlyCount "129"]
[EventDate "2020.07.10"]
[EventType "swiss"]
[EventCountry "SVK"]
[SourceTitle "playchess.com"]
[Source "ChessBase"]
[SourceQuality "1"]
[TimeControl "3600+30"]

1. e4 {[%emt 0:00:00]} g6 {[%emt 0:02:37]} 2. d4 {[%emt 0:00:03]} Bg7 {[%emt 0:00:07]} 3. Nc3 {[%emt 0:00:12]} d6 {[%emt 0:00:53]} 4. Be3 {[%emt 0:00:59]} Nc6 {[%emt 0:00:38]} 5. h3 {[%emt 0:01:17]} e5 {[%emt 0:01:27]} 6. Nf3 {[%emt 0:03:33]} Nge7 {[%emt 0:02:32]} 7. d5 {[%emt 0:01:43]} Nb8 {[%emt 0:00:08]} 8. Qd2 {[%emt 0:02:28]} h6 {[%emt 0:00:10]} 9. g4 {[%emt 0:03:04]} g5 {[%emt 0:02:35]} 10. Be2 {[%emt 0:04:32]} Ng6 {[%emt 0:01:44]} 11. O-O-O {[%emt 0:03:21]} Nd7 {[%emt 0:01:25]} 12. h4 {[%emt 0:05:47]} f6 {[%emt 0:05:40]} 13. Bd3 {[%emt 0:25:53]} Nf4 {[%emt 0:12:18]} 14. Ne2 {[%emt 0:04:05]} Nxe2+ {[%emt 0:01:26]} 15. Bxe2 {[%emt 0:01:39]} Nf8 {[%emt 0:00:08]} 16. Bb5+ {[%emt 0:02:20]} Kf7 {[%emt 0:01:07]} 17. Rdg1 {[%emt 0:02:23]} a6 {[%emt 0:01:38]} 18. Bd3 {[%emt 0:00:20]} Ng6 {[%emt 0:01:29]} 19. h5 {[%emt 0:01:33]} Nf8 {[%emt 0:02:57]} 20. Nh2 {[%emt 0:00:17]} Nd7 {[%emt 0:01:44]} 21. Nf1 {[%emt 0:00:33]} Re8 {[%emt 0:00:17]} 22. Ng3 {[%emt 0:00:45]} b6 {[%emt 0:03:12]} 23. Nf5 {[%emt 0:01:03]} Bf8 {[%emt 0:00:02]} 24. f3 {[%emt 0:01:08]} Nc5 {[%emt 0:01:32]} 25. Be2 {[%emt 0:00:43]} Rb8 {[%emt 0:04:24]} 26. Kd1 {[%emt 0:00:23]} Ra8 {[%emt 0:05:44]} 27. Ke1 {[%emt 0:00:13]} Bxf5 {[%emt 0:00:33]} 28. gxf5 {[%emt 0:00:33]} Qd7 {[%emt 0:00:12]} 29. b4 {[%emt 0:00:40]} Nb7 {[%emt 0:00:10]} 30. Kf2 {[%emt 0:00:21]} Reb8 {[%emt 0:01:11]} 31. Bd3 {[%emt 0:01:03]} Be7 {[%emt 0:00:15]} 32. Kg3 {[%emt 0:00:36]} Kg7 {[%emt 0:00:53]} 33. f4 {[%emt 0:02:24]} exf4+ {[%emt 0:03:05]} 34. Bxf4 {[%emt 0:00:04]} Rg8 {[%emt 0:00:20]} 35. Be3 {[%emt 0:00:32]} Rge8 {[%emt 0:01:40]} 36. Kf2 {[%emt 0:00:38]} Qd8 {[%emt 0:01:11]} 37. Qc3 {[%emt 0:00:16]} Kh7 {[%emt 0:00:31]} 38. Qc6 {[%emt 0:00:31]} Qc8 {[%emt 0:00:41]} 39. Bd4 {[%emt 0:00:18]} Rf8 {[%emt 0:00:22]} 40. Ke1 {[%emt 0:00:49]} Nd8 {[%emt 0:00:13]} 41. Qc3 {[%emt 0:00:06]} Qd7 {[%emt 0:01:07]} 42. Ke2 {[%emt 0:01:03]} Nb7 {[%emt 0:00:20]} 43. Re1 {[%emt 0:00:37]} Kg7 {[%emt 0:01:24]} 44. Kd1 {[%emt 0:00:14]} Kf7 {[%emt 0:00:34]} 45. Qc6 {[%emt 0:00:35]} Qxc6 {[%emt 0:01:42]} 46. dxc6 {[%emt 0:00:06]} Nd8 {[%emt 0:00:09]} 47. Bc4+ {[%emt 0:00:03]} Kg7 {[%emt 0:00:09]} 48. Bd5 {[%emt 0:00:20]} Nf7 {[%emt 0:00:26]} 49. c4 {[%emt 0:00:33]} Rfb8 {[%emt 0:00:38]} 50. Rh2 {[%emt 0:00:46]} Ne5 {[%emt 0:00:14]} 51. Rf1 {[%emt 0:00:16]} Kf8 {[%emt 0:00:58]} 52. Rd2 {[%emt 0:00:32]} Kg7 {[%emt 0:00:49]} 53. Ke2 {[%emt 0:00:19]} Bd8 {[%emt 0:00:30]} 54. Bxe5 {[%emt 0:00:34]} fxe5 {[%emt 0:00:25]} 55. c5 {[%emt 0:00:18]} Ra7 {[%emt 0:02:39]} 56. cxd6 {[%emt 0:00:16]} cxd6 {[%emt 0:00:09]} 57. Be6 {[%emt 0:00:17]} Be7 {[%emt 0:02:01]} 58. f6+ {[%emt 0:00:18]} Bxf6 {[%emt 0:00:04]} 59. Rxd6 {[%emt 0:00:06]} Rf8 {[%emt 0:01:01]} 60. Bd7 {[%emt 0:00:51]} Rc7 {[%emt 0:01:35]} 61. a4 {[%emt 0:00:30]} Ra7 {[%emt 0:00:26]} 62. Bf5 {[%emt 0:01:26]} Rc7 {[%emt 0:01:02]} 63. Rfd1 {[%emt 0:00:44]} Rff7 {[%emt 0:00:50]} 64. Bg6 {[%emt 0:00:33]} Rfe7 {[%emt 0:00:31]} 65. Rf1 {[%emt 0:00:08]} 1-0

[Event "SVK Amateur-ch 2020"]
[Site "Topolcany"]
[Date "2020.07.12"]
[Round "4.30"]
[White "Pirvulescu, Adrian"]
[Black "Zetocha, Adrian"]
[Result "0-1"]
[ECO "B13"]
[WhiteElo "1909"]
[BlackElo "2073"]
[Annotator "ChessBase"]
[PlyCount "64"]
[EventDate "2020.07.10"]
[EventType "swiss"]
[EventCountry "SVK"]
[SourceTitle "playchess.com"]
[Source "ChessBase"]
[SourceQuality "1"]
[TimeControl "3600+30"]

1. e4 {[%emt 0:00:00]} c6 {[%emt 0:00:00]} 2. d4 {[%emt 0:00:00]} d5 {[%emt 0:00:00]} 3. exd5 {[%emt 0:00:00]} cxd5 {[%emt 0:00:06]} 4. Bd3 {[%emt 0:00:00]} Nc6 {[%emt 0:00:29]} 5. c3 {[%emt 0:00:05]} Qc7 {[%emt 0:01:30]} 6. Ne2 {[%emt 0:00:33]} Bg4 {[%emt 0:00:22]} 7. O-O {[%emt 0:00:05]} e6 {[%emt 0:03:48]} 8. Qe1 {[%emt 0:00:03]} Bxe2 {[%emt 0:05:30]} 9. Qxe2 {[%emt 0:05:17]} Bd6 {[%emt 0:00:21]} 10. f4 {[%emt 0:01:38]} Nge7 {[%emt 0:03:20]} 11. Be3 {[%emt 0:10:21]} Nf5 {[%emt 0:05:07]} 12. Bf2 {[%emt 0:04:37]} O-O-O {[%emt 0:00:36]} 13. g4 {[%emt 0:01:59]} Nfe7 {[%emt 0:01:18]} 14. Bg3 {[%emt 0:00:02]} g5 {[%emt 0:08:50]} 15. Qe3 {[%emt 0:04:19]} gxf4 {[%emt 0:01:30]} 16. Bxf4 {[%emt 0:00:10]} Rdg8 {[%emt 0:06:04]} 17. Bxd6 {[%emt 0:02:55]} Qxd6 {[%emt 0:00:14]} 18. Rxf7 {[%emt 0:07:56]} Rxg4+ {[%emt 0:01:43]} 19. Kh1 {[%emt 0:00:35]} Rh4 {[%emt 0:04:21]} 20. Qf2 {[%emt 0:00:22]} Ng6 {[%emt 0:00:25]} 21. Na3 {[%emt 0:05:48]} a6 {[%emt 0:02:58]} 22. Rf1 {[%emt 0:01:25]} e5 {[%emt 0:01:46]} 23. Bf5+ {[%emt 0:11:00]} Kb8 {[%emt 0:01:44]} 24. Rd7 {[%emt 0:00:10]} Qf8 {[%emt 0:01:02]} 25. Bxg6 {[%emt 0:03:06]} Rf4 {[%emt 0:01:15]} 26. Qxf4 {[%emt 0:07:10]} exf4 {[%emt 0:00:13]} 27. Rf7 {[%emt 0:00:34]} Qh6 {[%emt 0:01:57]} 28. Bc2 {[%emt 0:01:28]} Rf8 {[%emt 0:03:34]} 29. Rxh7 {[%emt 0:00:13]} Qe6 {[%emt 0:00:38]} 30. Rh4 {[%emt 0:00:40]} f3 {[%emt 0:00:23]} 31. Bd1 {[%emt 0:01:44]} f2 {[%emt 0:01:45]} 32. Bg4 {[%emt 0:00:50]} Qe4+ {[%emt 0:00:08]} 0-1

[Event "SVK Amateur-ch 2020"]
[Site "Topolcany"]
[Date "2020.07.12"]
[Round "4.31"]
[White "Garban, Mario"]
[Black "Marsina, Stefan"]
[Result "1/2-1/2"]
[ECO "D46"]
[WhiteElo "2033"]
[BlackElo "1829"]
[Annotator "ChessBase"]
[PlyCount "67"]
[EventDate "2020.07.10"]
[EventType "swiss"]
[EventCountry "SVK"]
[SourceTitle "playchess.com"]
[Source "ChessBase"]
[SourceQuality "1"]
[TimeControl "3600+30"]

1. c4 {[%emt 0:00:29]} e6 {[%emt 0:00:22]} 2. d4 {[%emt 0:00:57]} d5 {[%emt 0:00:06]} 3. Nc3 {[%emt 0:01:25]} c6 {[%emt 0:00:28]} 4. e3 {[%emt 0:05:53]} Nf6 {[%emt 0:00:41]} 5. Nf3 {[%emt 0:01:12]} Nbd7 {[%emt 0:00:37]} 6. Bd3 {[%emt 0:04:24]} Bd6 {[%emt 0:01:40]} 7. c5 {[%emt 0:00:35]} Bc7 {[%emt 0:00:46]} 8. e4 {[%emt 0:11:58]} dxe4 {[%emt 0:11:47]} 9. Bxe4 {[%emt 0:00:50]} O-O {[%emt 0:08:16]} 10. Bg5 {[%emt 0:04:50]} h6 {[%emt 0:09:22]} 11. Bh4 {[%emt 0:00:53]} e5 {[%emt 0:02:07]} 12. dxe5 {[%emt 0:04:48]} Nxe5 {[%emt 0:06:41]} 13. Qxd8 {[%emt 0:01:01]} Nxf3+ {[%emt 0:00:31]} 14. Bxf3 {[%emt 0:00:11]} Bxd8 {[%emt 0:01:45]} 15. O-O-O {[%emt 0:05:03]} Be7 {[%emt 0:01:01]} 16. Ne4 {[%emt 0:10:30]} g5 {[%emt 0:04:18]} 17. Nxf6+ {[%emt 0:00:12]} Bxf6 {[%emt 0:00:02]} 18. Bg3 {[%emt 0:00:09]} Bf5 {[%emt 0:02:20]} 19. Rhe1 {[%emt 0:04:04]} Rfe8 {[%emt 0:00:44]} 20. Be2 {[%emt 0:01:14]} b6 {[%emt 0:07:21]} 21. f3 {[%emt 0:03:42]} bxc5 {[%emt 0:01:02]} 22. Ba6 {[%emt 0:02:01]} Bd4 {[%emt 0:02:22]} 23. b3 {[%emt 0:02:01]} Bc3 {[%emt 0:04:04]} 24. Re2 {[%emt 0:00:45]} Rxe2 {[%emt 0:00:33]} 25. Bxe2 {[%emt 0:01:35]} Re8 {[%emt 0:00:27]} 26. Bd3 {[%emt 0:00:03]} Bxd3 {[%emt 0:01:04]} 27. Rxd3 {[%emt 0:00:03]} Bd4 {[%emt 0:00:13]} 28. Kd1 {[%emt 0:00:45]} f5 {[%emt 0:01:03]} 29. b4 {[%emt 0:00:36]} Re3 {[%emt 0:00:55]} 30. Rd2 {[%emt 0:01:06]} Rc3 {[%emt 0:00:36]} 31. bxc5 {[%emt 0:00:27]} Bxc5 {[%emt 0:00:09]} 32. Rd8+ {[%emt 0:00:15]} Kf7 {[%emt 0:00:07]} 33. Be1 f4 34. Bg3 1/2-1/2

[Event "SVK Amateur-ch 2020"]
[Site "Topolcany"]
[Date "2020.07.12"]
[Round "4.32"]
[White "Dziewonski, Dariusz"]
[Black "Skreko, Igor"]
[Result "1/2-1/2"]
[ECO "B90"]
[WhiteElo "2029"]
[BlackElo "1761"]
[Annotator "ChessBase"]
[PlyCount "142"]
[EventDate "2020.07.10"]
[EventType "swiss"]
[EventCountry "SVK"]
[SourceTitle "playchess.com"]
[Source "ChessBase"]
[SourceQuality "1"]
[TimeControl "3600+30"]

1. e4 {[%emt 0:00:00]} c5 {[%emt 0:00:00]} 2. Nf3 {[%emt 0:00:00]} d6 {[%emt 0:00:00]} 3. d4 {[%emt 0:00:00]} cxd4 {[%emt 0:00:00]} 4. Nxd4 {[%emt 0:00:00]} Nf6 {[%emt 0:00:00]} 5. Nc3 {[%emt 0:00:00]} a6 {[%emt 0:00:00]} 6. Bc4 {[%emt 0:00:00]} e6 {[%emt 0:00:00]} 7. O-O {[%emt 0:00:00]} Be7 {[%emt 0:00:05]} 8. Bb3 {[%emt 0:00:03]} O-O {[%emt 0:00:39]} 9. Qf3 {[%emt 0:02:00]} Nbd7 {[%emt 0:02:07]} 10. Qg3 {[%emt 0:07:48]} Kh8 {[%emt 0:06:46]} 11. Bxe6 {[%emt 0:13:51]} fxe6 {[%emt 0:04:47]} 12. Nxe6 {[%emt 0:00:14]} Nh5 {[%emt 0:00:18]} 13. Qe3 {[%emt 0:04:55]} Qa5 {[%emt 0:03:28]} 14. Nxf8 {[%emt 0:10:43]} Bxf8 {[%emt 0:01:19]} 15. Bd2 {[%emt 0:03:02]} Qb6 {[%emt 0:05:26]} 16. b3 {[%emt 0:04:20]} Qxe3 {[%emt 0:03:29]} 17. Bxe3 {[%emt 0:00:08]} Nhf6 {[%emt 0:01:44]} 18. Rad1 {[%emt 0:02:25]} b5 {[%emt 0:02:30]} 19. f3 {[%emt 0:05:13]} Bb7 {[%emt 0:02:52]} 20. Rd2 {[%emt 0:01:56]} Rc8 {[%emt 0:01:06]} 21. Nd5 {[%emt 0:01:40]} Nxd5 {[%emt 0:00:38]} 22. exd5 {[%emt 0:00:03]} Nf6 {[%emt 0:01:07]} 23. Rfd1 {[%emt 0:00:27]} Kg8 {[%emt 0:01:40]} 24. Kf2 {[%emt 0:01:52]} Kf7 {[%emt 0:00:45]} 25. g4 {[%emt 0:02:29]} Be7 {[%emt 0:05:19]} 26. a4 {[%emt 0:01:49]} Bd8 {[%emt 0:03:17]} 27. axb5 {[%emt 0:00:46]} axb5 {[%emt 0:00:06]} 28. Ra1 {[%emt 0:01:33]} Be7 {[%emt 0:08:58]} 29. Ra7 {[%emt 0:00:52]} Rb8 {[%emt 0:00:41]} 30. c4 {[%emt 0:01:59]} bxc4 {[%emt 0:00:36]} 31. bxc4 {[%emt 0:00:04]} Bc8 {[%emt 0:02:16]} 32. Bf4 {[%emt 0:02:51]} Rb7 {[%emt 0:02:00]} 33. Rda2 {[%emt 0:00:32]} Rxa7 {[%emt 0:01:14]} 34. Rxa7 {[%emt 0:00:02]} Ke8 {[%emt 0:00:52]} 35. Ra8 {[%emt 0:02:11]} Kd8 {[%emt 0:01:14]} 36. Ke2 {[%emt 0:00:19]} Nd7 {[%emt 0:00:41]} 37. Kd3 {[%emt 0:01:22]} Nc5+ {[%emt 0:00:34]} 38. Kc2 {[%emt 0:00:43]} h6 {[%emt 0:00:48]} 39. Be3 {[%emt 0:00:37]} Bf6 {[%emt 0:01:35]} 40. Ra5 {[%emt 0:00:35]} Nd7 {[%emt 0:00:29]} 41. Bf4 {[%emt 0:00:33]} Ne5 {[%emt 0:00:27]} 42. Bxe5 {[%emt 0:00:05]} Bxe5 {[%emt 0:00:10]} 43. h3 {[%emt 0:00:24]} Kc7 {[%emt 0:01:11]} 44. Kd3 {[%emt 0:00:39]} Bd7 {[%emt 0:00:49]} 45. Ra7+ {[%emt 0:00:25]} Kd8 {[%emt 0:00:06]} 46. Ke4 {[%emt 0:00:34]} g5 {[%emt 0:00:36]} 47. c5 {[%emt 0:00:29]} Bb5 {[%emt 0:01:29]} 48. c6 {[%emt 0:00:28]} Bf1 {[%emt 0:01:02]} 49. Rh7 {[%emt 0:00:42]} Bxh3 {[%emt 0:00:34]} 50. Rxh6 {[%emt 0:00:07]} Bf1 {[%emt 0:00:06]} 51. Kf5 {[%emt 0:01:01]} Bf4 {[%emt 0:00:29]} 52. Rh8+ {[%emt 0:00:17]} Kc7 {[%emt 0:00:07]} 53. Rh7+ {[%emt 0:00:07]} Kc8 {[%emt 0:00:23]} 54. Ra7 {[%emt 0:00:40]} Bd3+ {[%emt 0:00:56]} 55. Ke6 {[%emt 0:00:14]} Be2 {[%emt 0:00:22]} 56. Ra3 {[%emt 0:00:16]} Bd1 {[%emt 0:00:32]} 57. Rc3 {[%emt 0:01:08]} Kc7 {[%emt 0:00:30]} 58. Kf5 {[%emt 0:00:38]} Be2 {[%emt 0:00:23]} 59. Ke4 {[%emt 0:00:31]} Bf1 {[%emt 0:00:20]} 60. Ra3 {[%emt 0:00:18]} Be5 {[%emt 0:00:37]} 61. Ra7+ {[%emt 0:00:19]} Kc8 {[%emt 0:00:08]} 62. Re7 {[%emt 0:01:00]} Bf4 {[%emt 0:00:44]} 63. Rf7 {[%emt 0:00:33]} Bc4 {[%emt 0:00:59]} 64. Ra7 {[%emt 0:00:22]} Bb3 {[%emt 0:00:17]} 65. Ra3 {[%emt 0:00:27]} Bd1 {[%emt 0:00:42]} 66. Ra8+ {[%emt 0:00:46]} Kc7 {[%emt 0:00:06]} 67. Ra7+ {[%emt 0:00:03]} Kc8 {[%emt 0:00:06]} 68. Ra3 {[%emt 0:00:16]} Be2 {[%emt 0:00:24]} 69. Ra2 {[%emt 0:01:01]} Bd1 {[%emt 0:00:11]} 70. Ra8+ {[%emt 0:00:38]} Kc7 {[%emt 0:00:05]} 71. Ra7+ {[%emt 0:00:27]} Kc8 {[%emt 0:00:08]} 1/2-1/2

[Event "SVK Amateur-ch 2020"]
[Site "Topolcany"]
[Date "2020.07.13"]
[Round "5.1"]
[White "Trasakova Adela"]
[Black "Garban, Mario"]
[Result "0-1"]
[ECO "A46"]
[WhiteElo "1660"]
[BlackElo "2033"]
[Annotator "ChessBase"]
[PlyCount "117"]
[EventDate "2020.07.10"]
[EventType "swiss"]
[EventCountry "SVK"]
[TimeControl "3600+30"]

1. d4 {[%emt 0:00:00]} d6 {[%emt 0:00:00]} 2. Bf4 {[%emt 0:00:09]} Nf6 {[%emt 0:02:51]} 3. Nf3 {[%emt 0:00:20]} Bg4 {[%emt 0:00:45]} 4. Nbd2 {[%emt 0:03:45]} Nbd7 {[%emt 0:02:32]} 5. c3 {[%emt 0:01:40]} c6 {[%emt 0:03:08]} 6. Qc2 {[%emt 0:01:27]} d5 {[%emt 0:04:54]} 7. e3 {[%emt 0:02:37]} Bh5 {[%emt 0:05:01]} 8. Bd3 {[%emt 0:02:38]} e6 {[%emt 0:04:14]} 9. O-O {[%emt 0:01:51]} Be7 {[%emt 0:01:29]} 10. Ne5 {[%emt 0:01:20]} O-O {[%emt 0:05:22]} 11. e4 {[%emt 0:02:08]} Nxe5 {[%emt 0:02:54]} 12. dxe5 {[%emt 0:04:29]} Nxe4 {[%emt 0:00:16]} 13. Nxe4 {[%emt 0:00:24]} dxe4 {[%emt 0:00:11]} 14. Bxe4 {[%emt 0:00:06]} Bg6 {[%emt 0:05:21]} 15. Be3 {[%emt 0:03:19]} Bxe4 {[%emt 0:03:27]} 16. Qxe4 {[%emt 0:00:10]} Qd5 {[%emt 0:00:11]} 17. Qxd5 {[%emt 0:01:42]} cxd5 {[%emt 0:00:17]} 18. f4 {[%emt 0:02:29]} b6 {[%emt 0:06:05]} 19. Rac1 {[%emt 0:04:09]} Bc5 {[%emt 0:00:49]} 20. Bxc5 {[%emt 0:02:03]} bxc5 {[%emt 0:00:08]} 21. c4 {[%emt 0:00:42]} d4 {[%emt 0:02:14]} 22. f5 {[%emt 0:04:05]} exf5 {[%emt 0:00:35]} 23. Rxf5 {[%emt 0:00:08]} g6 {[%emt 0:00:39]} 24. Rf6 {[%emt 0:01:53]} Rfe8 {[%emt 0:00:31]} 25. Re1 {[%emt 0:01:21]} Re6 {[%emt 0:00:21]} 26. Rxe6 {[%emt 0:02:48]} fxe6 {[%emt 0:00:09]} 27. a3 {[%emt 0:03:07]} Rb8 {[%emt 0:01:01]} 28. Re2 {[%emt 0:01:19]} Rb3 {[%emt 0:05:20]} 29. g4 {[%emt 0:06:35]} a5 {[%emt 0:02:23]} 30. Kg2 {[%emt 0:01:38]} g5 {[%emt 0:02:48]} 31. Kf2 {[%emt 0:03:56]} Kf7 {[%emt 0:01:47]} 32. Kg1 {[%emt 0:02:39]} Kg7 {[%emt 0:00:57]} 33. Kf1 {[%emt 0:01:28]} h5 {[%emt 0:01:27]} 34. gxh5 {[%emt 0:02:15]} Rh3 {[%emt 0:03:34]} 35. Kg2 {[%emt 0:01:45]} Rxh5 {[%emt 0:00:07]} 36. Kg3 {[%emt 0:00:32]} Rh4 {[%emt 0:01:14]} 37. b4 {[%emt 0:01:56]} axb4 {[%emt 0:00:28]} 38. axb4 {[%emt 0:00:05]} cxb4 {[%emt 0:00:51]} 39. c5 {[%emt 0:00:52]} d3 {[%emt 0:00:45]} 40. Rd2 {[%emt 0:01:11]} Rc4 {[%emt 0:00:13]} 41. Kf2 {[%emt 0:01:32]} Rc2 {[%emt 0:01:20]} 42. Ke3 {[%emt 0:00:34]} Rxc5 {[%emt 0:00:30]} 43. Rxd3 {[%emt 0:00:39]} Rc3 {[%emt 0:01:13]} 44. Rxc3 {[%emt 0:00:21]} bxc3 {[%emt 0:00:04]} 45. Kd3 {[%emt 0:00:04]} Kg6 {[%emt 0:00:10]} 46. Kxc3 {[%emt 0:00:06]} Kf5 {[%emt 0:00:07]} 47. Kd4 {[%emt 0:00:27]} g4 {[%emt 0:00:33]} 48. Ke3 {[%emt 0:01:04]} Kxe5 {[%emt 0:00:15]} 49. Kf2 {[%emt 0:00:13]} Kf4 {[%emt 0:00:19]} 50. Ke2 {[%emt 0:00:09]} e5 {[%emt 0:01:33]} 51. Kf2 {[%emt 0:01:11]} e4 {[%emt 0:00:18]} 52. Ke2 {[%emt 0:00:08]} e3 {[%emt 0:00:09]} 53. Ke1 {[%emt 0:00:08]} Kf3 {[%emt 0:00:16]} 54. Kf1 {[%emt 0:00:19]} e2+ {[%emt 0:00:11]} 55. Ke1 {[%emt 0:00:05]} Ke3 {[%emt 0:01:01]} 56. h4 {[%emt 0:00:48]} g3 {[%emt 0:00:12]} 57. h5 {[%emt 0:00:08]} g2 {[%emt 0:00:07]} 58. h6 {[%emt 0:00:04]} g1=N {[%emt 0:00:21]} 59. h7 {[%emt 0:00:30]} 0-1

[Event "SVK Amateur-ch 2020"]
[Site "Topolcany"]
[Date "2020.07.13"]
[Round "5.2"]
[White "Juan Lepp, Jaime Boris"]
[Black "Pokrupa, Marek"]
[Result "0-1"]
[ECO "C10"]
[WhiteElo "1853"]
[BlackElo "2187"]
[Annotator "ChessBase"]
[PlyCount "98"]
[EventDate "2020.07.10"]
[EventType "swiss"]
[EventCountry "SVK"]
[TimeControl "3600+30"]

1. e4 {[%emt 0:00:00]} e6 {[%emt 0:00:00]} 2. Nf3 {[%emt 0:00:00]} d5 {[%emt 0:00:00]} 3. Nc3 {[%emt 0:00:00]} dxe4 {[%emt 0:00:34]} 4. Nxe4 {[%emt 0:00:02]} Nd7 {[%emt 0:00:02]} 5. d4 {[%emt 0:00:29]} Ngf6 {[%emt 0:00:03]} 6. Nxf6+ {[%emt 0:00:39]} Nxf6 {[%emt 0:00:05]} 7. Bd3 {[%emt 0:00:52]} b6 {[%emt 0:00:53]} 8. O-O {[%emt 0:00:44]} Bb7 {[%emt 0:00:07]} 9. c3 {[%emt 0:04:33]} Be7 {[%emt 0:02:34]} 10. Qa4+ {[%emt 0:05:49]} c6 {[%emt 0:06:12]} 11. Ne5 {[%emt 0:01:17]} Qc8 {[%emt 0:03:41]} 12. f4 {[%emt 0:03:32]} O-O {[%emt 0:04:43]} 13. f5 {[%emt 0:00:57]} c5 {[%emt 0:00:59]} 14. fxe6 {[%emt 0:01:56]} Qxe6 {[%emt 0:00:12]} 15. Bc4 {[%emt 0:08:02]} Bd5 {[%emt 0:03:16]} 16. Bg5 {[%emt 0:02:57]} Bxc4 {[%emt 0:04:58]} 17. Nxc4 {[%emt 0:03:30]} cxd4 {[%emt 0:06:23]} 18. cxd4 {[%emt 0:06:20]} Qg4 {[%emt 0:12:29]} 19. Bf4 {[%emt 0:03:42]} Nd5 {[%emt 0:03:08]} 20. Ne5 {[%emt 0:01:31]} Qe2 {[%emt 0:01:28]} 21. Rf2 {[%emt 0:03:22]} Qe4 {[%emt 0:00:36]} 22. Bg3 {[%emt 0:00:34]} Bg5 {[%emt 0:01:17]} 23. Qc2 {[%emt 0:03:07]} Qxc2 {[%emt 0:01:39]} 24. Rxc2 {[%emt 0:00:02]} Rac8 {[%emt 0:00:22]} 25. Re2 {[%emt 0:01:44]} Rfe8 {[%emt 0:01:20]} 26. Rae1 {[%emt 0:01:57]} f6 {[%emt 0:01:46]} 27. Nf3 {[%emt 0:00:31]} Rxe2 {[%emt 0:00:33]} 28. Rxe2 {[%emt 0:00:01]} Be3+ {[%emt 0:00:19]} 29. Bf2 {[%emt 0:00:50]} Rc1+ {[%emt 0:00:27]} 30. Re1 {[%emt 0:00:52]} Kf7 {[%emt 0:01:23]} 31. Bxe3 {[%emt 0:00:49]} Rxe1+ {[%emt 0:00:05]} 32. Nxe1 {[%emt 0:00:09]} Nxe3 {[%emt 0:00:02]} 33. Nd3 {[%emt 0:00:46]} Nf5 {[%emt 0:05:46]} 34. d5 {[%emt 0:03:14]} Ne3 {[%emt 0:00:06]} 35. d6 {[%emt 0:00:35]} g5 {[%emt 0:01:47]} 36. Nb4 {[%emt 0:02:11]} Ke6 {[%emt 0:01:47]} 37. Nd3 {[%emt 0:05:05]} Kxd6 {[%emt 0:01:10]} 38. h3 {[%emt 0:01:23]} h5 {[%emt 0:00:22]} 39. Kf2 {[%emt 0:00:25]} Nc4 {[%emt 0:00:20]} 40. b3 {[%emt 0:01:09]} Ne5 {[%emt 0:00:08]} 41. Nc1 {[%emt 0:00:26]} h4 {[%emt 0:00:36]} 42. Ke3 {[%emt 0:00:38]} Kd5 {[%emt 0:01:00]} 43. Ne2 {[%emt 0:00:57]} f5 {[%emt 0:01:02]} 44. a3 {[%emt 0:00:20]} Nc6 {[%emt 0:02:41]} 45. Nc3+ {[%emt 0:01:24]} Ke5 {[%emt 0:00:02]} 46. b4 {[%emt 0:00:58]} Nd4 {[%emt 0:00:59]} 47. a4 {[%emt 0:02:12]} Nc2+ {[%emt 0:00:14]} 48. Kf3 {[%emt 0:00:16]} Nxb4 {[%emt 0:00:05]} 49. Nb5 {[%emt 0:00:22]} Nc6 {[%emt 0:00:03]} 0-1